Department Family,Entity,Date,Expense Type,Expense Area,Supplier,Transaction Number,Amount,Description
NS&I,NS&I,25/01/2012,ATOS Contract Costs,Partnerships & Contracts,Atos IT Services UK Ltd,243542,"-5,442,845.22 ",Unitary Fee - CY13
NS&I,NS&I,11/01/2012,Post Office Contract Costs,Distribution Relationship Development,Post Office Ltd,243577,"-1,634,615.38 ",Network Access (Fixed) - covering period Jan 2012
NS&I,NS&I,04/01/2012,ATOS Contract Costs,Partnerships & Contracts,Atos IT Services UK Ltd,243460,"-940,533.89 ",IS Strategy Programme Payment Plan
NS&I,NS&I,18/01/2012,Business to business - ATOS Costs,Leveraging,Atos IT Services UK Ltd,243550,"-813,537.00 ",Business to Business
NS&I,NS&I,11/01/2012,ATOS Contract Costs,Partnerships & Contracts,Atos IT Services UK Ltd,243544,"-740,186.00 ",Growth Fixed Fee
NS&I,NS&I,11/01/2012,ATOS Maintenance and Running costs,Telephony Internet,Atos IT Services UK Ltd,243549,"-543,927.00 ",PB Authentication Running Costs
NS&I,NS&I,04/01/2012,ATOS Project Costs,Customer Product Management,Atos IT Services UK Ltd,243434,"-504,153.00 ",PF Nov 11
NS&I,NS&I,11/01/2012,ATOS Contract Costs,Partnerships & Contracts,Atos IT Services UK Ltd,243543,"-470,250.00 ",Growth Fixed Fee
NS&I,NS&I,04/01/2012,Business to business - ATOS Costs,Leveraging,Atos IT Services UK Ltd,243487,"-362,000.00 ",Business to Business
NS&I,NS&I,04/01/2012,ATOS Maintenance and Running costs,Partnerships & Contracts,Atos IT Services UK Ltd,243343,"-344,151.00 ",EOI Operations
NS&I,NS&I,04/01/2012,HQ Building Services Charges,Facilties Management,Office For National Statistics,243415,"-342,015.00 ","DG Service Charge Q4 2011-12, 01/01-31/03"
NS&I,NS&I,11/01/2012,ATOS Project Costs,Customer Product Management,Atos IT Services UK Ltd,243559,"-333,864.00 ",TV2 Functionality Code Drop
NS&I,NS&I,18/01/2012,Business to business - ATOS Costs,Leveraging,Atos IT Services UK Ltd,243545,"-303,070.00 ",Business to Business
NS&I,NS&I,20/01/2012,Product Account Bank Charges,Finance,Government Banking Service,823061,"-140,831.56 ",RBSG Charges Dec 2011
NS&I,NS&I,04/01/2012,ATOS Project Costs,Customer Product Management,Atos IT Services UK Ltd,243468,"-126,857.00 ",Term Products Trans Liability
NS&I,NS&I,04/01/2012,Advertising & Production,Marketing,OMD,243365,"-109,234.52 ",Advertising and production costs for Classic FM
NS&I,NS&I,04/01/2012,Professional Fees (IT and Security),Telephony Internet,EMC Computer Systems (uk) LTD,243430,"-105,980.40 ",3 YR Adaptive Authentication Hosted
NS&I,NS&I,11/01/2012,ATOS Maintenance and Running costs,Partnerships & Contracts,Atos IT Services UK Ltd,243540,"-103,962.00 ",MLA Implementation of Joint internet Portal
NS&I,NS&I,18/01/2012,ATOS Project Costs,Customer Product Management,Atos IT Services UK Ltd,243562,"-101,288.00 ",Residual Instance
NS&I,NS&I,04/01/2012,Internal Audit - Fees,Finance Director's Office,KPMG LLP (UK),243455,"-95,666.04 ",Internal audit fieldwork /expenses 1-30 Nov 11
NS&I,NS&I,04/01/2012,ATOS Maintenance and Running costs,Telephony Internet,Atos IT Services UK Ltd,243473,"-91,277.00 ",Intelligent Environments
NS&I,NS&I,04/01/2012,Advertising & Production,Marketing,OMD,243363,"-85,971.22 ",Online Advertising
NS&I,NS&I,04/01/2012,ATOS Project Costs,IS Assurance,Atos IT Services UK Ltd,243469,"-82,924.00 ",EOIS Initial Sales  November 2011
NS&I,NS&I,25/01/2012,Internal Audit - Fees,Finance Director's Office,KPMG LLP (UK),243781,"-75,141.04 ",Internal Audit fieldword/expenses 1-31Dec 2011
NS&I,NS&I,04/01/2012,Advertising & Production,Marketing,OMD,243364,"-67,283.34 ",Advertising and production costs
NS&I,NS&I,04/01/2012,ATOS Project Costs,Telephony Internet,Atos IT Services UK Ltd,243538,"-52,980.00 ",IP Telephony Rollout
NS&I,NS&I,25/01/2012,ATOS Project Costs,IS Assurance,Atos IT Services UK Ltd,243754,"-51,030.00 ",EOIS Initial Sales December 2011
NS&I,NS&I,11/01/2012,ATOS Project Costs,Risk & Compliance,Atos IT Services UK Ltd,243563,"-47,490.00 ",Security & FSA Training
NS&I,NS&I,04/01/2012,ATOS Project Costs,IS Assurance,Atos IT Services UK Ltd,243422,"-44,465.00 ",SOF Manual Solution
NS&I,NS&I,18/01/2012,Consultancy,Strategy,Corporate Value Associates,243689,"-43,572.00 ",Leveraging Issues Review
NS&I,NS&I,18/01/2012,Professional  Services -Legal,Partnerships & Contracts,Field Fisher Waterhouse LLP,243649,"-40,919.58 ",Project Yoda
NS&I,NS&I,04/01/2012,Direct Marketing,Marketing Services,Kitcatt Nohr Digitas,243445,"-38,264.69 ",Evolution DM 7 Nov 11
NS&I,NS&I,11/01/2012,Professional Fees (Property and FM),Delivery Support & Assurance,Jones Lang Lasalle,243503,"-37,292.64 ",PAM Strategy - Glasgow
NS&I,NS&I,04/01/2012,ATOS Maintenance and Running costs,Partnerships & Contracts,Atos IT Services UK Ltd,243472,"-36,511.00 ",Funded BAU Corporate Neteeza Annual Renewal Nov 11
NS&I,NS&I,11/01/2012,Direct Marketing,Marketing Services,Kitcatt Nohr Digitas,243440,"-36,090.00 ",Outlook & Perspective - 3 Nov 11
NS&I,NS&I,04/01/2012,Advertising Agency Costs,Marketing,Chick Smith Trott,243498,"-36,000.00 ",NS&I Annual Retainer Fee Apr 11-Mar 12 (Dec fee)
NS&I,NS&I,11/01/2012,ATOS Maintenance and Running costs,Telephony Internet,Atos IT Services UK Ltd,243546,"-34,710.37 ",NSI Freephone Call Charges
NS&I,NS&I,04/01/2012,Advertising & Production,Marketing,OMD,243367,"-30,790.64 ",Advertising and production costs
NS&I,NS&I,04/01/2012,Recruitment Costs,People & Environment,PER ARDUA ASSOCIATES LIMITED,243526,"-30,720.00 ",1st Retainer Financial Times Advertisement
NS&I,NS&I,11/01/2012,ATOS Maintenance and Running costs,Partnerships & Contracts,Atos IT Services UK Ltd,243533,"-28,304.00 ",Inclusion of PB TCs in Wel Pack
NS&I,NS&I,18/01/2012,Professional Servcies Project Staff,Leveraging,Moorhouse Consortium,243681,"-27,720.00 ",Pro Services Nov 2011
NS&I,NS&I,18/01/2012,Professional Servcies Project Staff,Leveraging,Moorhouse Consortium,243683,"-27,060.00 ",Pro Services Nov 2011
NS&I,NS&I,04/01/2012,ATOS Maintenance and Running costs,IS Assurance,Atos IT Services UK Ltd,243488,"-25,580.00 ",Assurance Services Oct 11
